{"text_format":"1","workbook":"xlsx","n_sheets":19,"sheets":["Instruction","Data Entry Sheet","Format No.1-1","Format No.2-1","Format No.2-2","Format No.3","Format No.5(1)","Format No.5(2)","Format No.5(3)","Format No.5(4)","Format No.5(5)","Format No.4","Format No.12","Format No.6(1)","Format No.6(2)","Format No.6(3)","Format No.6(4)","Format No.6(5)","Format No.15"],"not_rendered":{"charts":0,"images":2,"macros":1,"external_links":0,"defined_names":18,"comments":0,"pivot_tables":0},"unopened":[],"bounds":{"document_bytes":16777216,"sheet_cells":100000,"rows_first":2000,"rows_last":500,"rows_between":2000,"halvings":0,"cell_chars":16384,"cell_head_chars":4096},"cells_cut":0,"cells_raw":0,"read":"whole","date_system":"1900"}

{"sheet":"Instruction","index":0,"n_rows":15,"n_cols":4,"rows_kept":15,"cut":false,"hidden":false,"merged":[[14,2,14,19],[0,2,0,19],[2,2,2,19],[3,2,3,19],[4,2,4,19],[5,2,5,19],[6,3,6,19],[7,3,7,19],[8,2,8,19],[9,2,9,19],[10,2,10,19],[11,2,11,19],[12,2,12,19],[13,2,13,19]]}
[null,null,"(Before use) Click “Enable Content”."]
[]
[1,null,"This file is for creating the various forms required for submitting a dissertation."]
[2,null,"This file can accommodate up to 5 Major Publications and up to 4 Sub-Publications. If you need to exceed these limits, please consult the University Academic Affairs Office."]
[null,null,"※　Forms 5 and 6 each have five sheets prepared to accommodate up to five Major Publications."]
[3,null,"The “Data Entry Sheet” is a sheet for entering the necessary information when creating each form. Please review the “Instruction” before filling it out."]
[4,null,null,"Sheets marked in orange contain fields that require information to be filled in, in addition to the information entered in the \"Data Entry Sheet\"."]
[null,null,null,"Light blue indicates cells (fields) that require input."]
[5,null,"”Format No.3(Summary of Doctoral  Dissertation)” has a word limit. You can check the word count by clicking “Check Word Count.”"]
[null,null,"※　The “Format No.3” for the dissertation abstract is two pages long. To properly format each page, create paragraphs appropriately. Use Alt+Enter for line breaks, and insert double spacing at the beginning of each paragraph."]
[6,null,"Click “Running Macro (Copy)” to transfer the information from the “Data Entry Sheet” to other sheets.\n　　←　Positioned at the top right of the “Data Entry Sheet”"]
[null,null,"※　At that time, it may take a moment for the information to update. Click “Running Macro” and wait until “The update has been completed” appears."]
[null,null,"　　When “The update has been completed” appears, the documents in each sheet are finished."]
[7,null,"To clear the merged information, click “Clear Data”."]
[8,null,"When applying for a degree dissertation, please submit the following items to the Academic Affairs Section.\n・This Excel data\n・Printed copies of each form (Signatures are required, especially for Format 1-1, Format 6, Format 12, and Format 15.)\n・PDF of the dissertation\n・PDF of the academic paper(s) forming the basis of the dissertation\n・Supporting documents related to Format 6 (AGREEMENT) (e.g., copies of emails or other evidence confirming consent from co-authors other than the major supervisor)\n・Dissertation Application Documents Checklist"]

{"sheet":"Data Entry Sheet","index":1,"n_rows":121,"n_cols":4,"rows_kept":121,"cut":false,"hidden":false,"merged":[[25,1,25,3],[26,1,26,3],[39,1,39,3],[40,1,40,3],[82,1,82,3],[85,1,85,12],[53,1,53,3],[54,1,54,3],[67,1,67,3],[68,1,68,3],[81,1,81,3]]}
["１．Basic Information","Entry field","Important Notes on Input","Sample entry"]
["Date of Application",null,"Please submit all application documents.","2022-11-22"]
["Applicant Name",null,null,"Taro TOTTORI"]
["Course",null,"Please select from the dropdown menu."]
["Entrance Year",null,null,2022]
["Entrance Month",null,"Please select from the dropdown menu.","April or October"]
["Dissertation Title (English)",null,"Please enter the scientific name in italics."]
["Dissertation Title (Japanese)",null,"Please enter the scientific name in italics."]
["Name of Major Supervisor",null,null,"Jiro KOYAMA"]
["　Affiliation",null,null,"Faculty of Agriculture, Tottori University"]
["　Position",null,null,"Professor"]
[]
["２．Major-Papers Published in Distinguished Journals"]
["【1st】","Entry field","Important Notes on Input","Sample entry"]
["Title",null,"Please enter the scientific name in italics."]
["Authorship",null,"Please fill in the form using the sample as a reference.","Yamada. T., Tanaka. J., Sato, H. and Yamaguchi. S. （Last Name, First Name.）"]
["Name of Scientific Journal"]
["Volume",null,null,19]
["No.",null,"Please type in ( ).","(4)"]
["Pages",null,null,"120-130"]
["DOI",null,"If you have a DOI, please enter the DOI with a link.","https://doi.org/10.1016/j.cscm.2025.e05494"]
["Publication Status",null,"Please select from the dropdown menu. If you are currently submitting a post, do not select anything."]
["Publication Date（Case of Pressed（Published online））",null,"Indicate the year and month. (No need for the date.) Leave blank if currently submitting.",2020.1]
["Date of Acceptance（Case of Accepted）",null,"Please fill in the date. Submit documentation proving acceptance. Leave blank if currently under review.","2020.12.12"]
["Whether or not there are Joint-Workd Publication",null,"Please select from the dropdown menu. If the paper is a Joint-Workedpublication, please enter \"Summay of Joint-Workd Publication\" and \"Applicant's research allocation in the publication\"."]
["Summay of Joint-Workd Publication"]
["Applicant's research allocation in the publication\n\nPlease fill in this section.\n【Example】 The applicant was responsible for [Position/Title]."]
["【2nd】","Entry field","Important Notes on Input","Sample entry"]
["Title",null,"Please enter the scientific name in italics."]
["Authorship",null,"Please fill in the form using the sample as a reference.","Yamada. T., Tanaka. J., Sato, H. and Yamaguchi. S. （Last Name, First Name.）"]
["Name of Scientific Journal"]
["Volume",null,null,19]
["No.",null,"Please type in ( ).","(4)"]
["Pages",null,null,"120-130"]
["DOI",null,"If you have a DOI, please enter the DOI with a link.","https://doi.org/10.1016/j.cscm.2025.e05494"]
["Publication Status",null,"Please select from the dropdown menu. If you are currently submitting a post, do not select anything."]
["Publication Date（Case of Pressed（Published online））",null,"Indicate the year and month. (No need for the date.) Leave blank if currently submitting.",2020.1]
["Date of Acceptance（Case of Accepted）",null,"Please fill in the date. Submit documentation proving acceptance. Leave blank if currently under review.","2020.12.12"]
["Whether or not there are Joint-Workd Publication",null,"Please select from the dropdown menu. If the paper is a Joint-Workedpublication, please enter \"Summay of Joint-Workd Publication\" and \"Applicant's research allocation in the publication\"."]
["Summay of Joint-Workd Publication"]
["Applicant's research allocation in the publication\n\nPlease fill in this section.\n【Example】 The applicant was responsible for [Position/Title]."]
["【3rd】","Entry field","Important Notes on Input","Sample entry"]
["Title",null,"Please enter the scientific name in italics."]
["Authorship",null,"Please fill in the form using the sample as a reference.","Yamada. T., Tanaka. J., Sato, H. and Yamaguchi. S. （Last Name, First Name.）"]
["Name of Scientific Journal"]
["Volume",null,null,19]
["No.",null,"Please type in ( ).","(4)"]
["Pages",null,null,"120-130"]
["DOI",null,"If you have a DOI, please enter the DOI with a link.","https://doi.org/10.1016/j.cscm.2025.e05494"]
["Publication Status",null,"Please select from the dropdown menu. If you are currently submitting a post, do not select anything."]
["Publication Date（Case of Pressed（Published online））",null,"Indicate the year and month. (No need for the date.) Leave blank if currently submitting.",2020.1]
["Date of Acceptance（Case of Accepted）",null,"Please fill in the date. Submit documentation proving acceptance. Leave blank if currently under review.","2020.12.12"]
["Whether or not there are Joint-Workd Publication",null,"Please select from the dropdown menu. If the paper is a Joint-Workedpublication, please enter \"Summay of Joint-Workd Publication\" and \"Applicant's research allocation in the publication\"."]
["Summay of Joint-Workd Publication"]
["Applicant's research allocation in the publication\n\nPlease fill in this section.\n【Example】 The applicant was responsible for [Position/Title]."]
["【4th】","Entry field","Important Notes on Input","Sample entry"]
["Title",null,"Please enter the scientific name in italics."]
["Authorship",null,"Please fill in the form using the sample as a reference.","Yamada. T., Tanaka. J., Sato, H. and Yamaguchi. S. （Last Name, First Name.）"]
["Name of Scientific Journal"]
["Volume",null,null,19]
["No.",null,"Please type in ( ).","(4)"]
["Pages",null,null,"120-130"]
["DOI",null,"If you have a DOI, please enter the DOI with a link.","https://doi.org/10.1016/j.cscm.2025.e05494"]
["Publication Status",null,"Please select from the dropdown menu. If you are currently submitting a post, do not select anything."]
["Publication Date（Case of Pressed（Published online））",null,"Indicate the year and month. (No need for the date.) Leave blank if currently submitting.",2020.1]
["Date of Acceptance（Case of Accepted）",null,"Please fill in the date. Submit documentation proving acceptance. Leave blank if currently under review.","2020.12.12"]
["Whether or not there are Joint-Workd Publication",null,"Please select from the dropdown menu. If the paper is a Joint-Workedpublication, please enter \"Summay of Joint-Workd Publication\" and \"Applicant's research allocation in the publication\"."]
["Summay of Joint-Workd Publication"]
["Applicant's research allocation in the publication\n\nPlease fill in this section.\n【Example】 The applicant was responsible for [Position/Title]."]
["【5th】","Entry field","Important Notes on Input","Sample entry"]
["Title",null,"Please enter the scientific name in italics."]
["Authorship",null,"Please fill in the form using the sample as a reference.","Yamada. T., Tanaka. J., Sato, H. and Yamaguchi. S. （Last Name, First Name.）"]
["Name of Scientific Journal"]
["Volume",null,null,19]
["No.",null,"Please type in ( ).","(4)"]
["Pages",null,null,"120-130"]
["DOI",null,"If you have a DOI, please enter the DOI with a link.","https://doi.org/10.1016/j.cscm.2025.e05494"]
["Publication Status",null,"Please select from the dropdown menu. If you are currently submitting a post, do not select anything."]
["Publication Date（Case of Pressed（Published online））",null,"Indicate the year and month. (No need for the date.) Leave blank if currently submitting.",2020.1]
["Date of Acceptance（Case of Accepted）",null,"Please fill in the date. Submit documentation proving acceptance. Leave blank if currently under review.","2020.12.12"]
["Whether or not there are Joint-Workd Publication",null,"Please select from the dropdown menu. If the paper is a Joint-Workedpublication, please enter \"Summay of Joint-Workd Publication\" and \"Applicant's research allocation in the publication\"."]
["Summay of Joint-Workd Publication"]
["Applicant's research allocation in the publication\n\nPlease fill in this section.\n【Example】 The applicant was responsible for [Position/Title]."]
[]
["3． Summary of Doctoral Dissertation"]
["Summary of Doctoral Dissertation\n\n（Please write about 1,200 words (The maximum is 1,300 words) in English.）\n\n\n\nUse Alt+Enter for line breaks, and insert double spaces at the beginning of each paragraph.\n\nAfter filling in the form, click “Run Macro (Word Count Check)” to verify the word count and adjust it to the specified limit."]
[null,null,"0 words"]
[]
["4．Sub-Publications in Distinguished Journals"]
["【1st】","Entry field","Important Notes on Input","Sample entry"]
["Title",null,"Please enter the scientific name in italics."]
["Authorship",null,"Please fill in the form using the sample as a reference.","Yamada. T., Tanaka. J., Sato, H. and Yamaguchi. S. （Last Name, First Name.）"]
["Name of Scientific Journal"]
["Volume",null,null,19]
["No.",null,"Please type in ( ).","(4)"]
["Pages",null,null,"120-130"]
["Publication Date",null,"Indicate the year and month. (No need for the date.) ","2022.12"]
["【2nd】","Entry field","Important Notes on Input","Sample entry"]
["Title",null,"Please enter the scientific name in italics."]
["Authorship",null,"Please fill in the form using the sample as a reference.","Yamada. T., Tanaka. J., Sato, H. and Yamaguchi. S. （Last Name, First Name.）"]
["Name of Scientific Journal"]
["Volume",null,null,19]
["No.",null,"Please type in ( ).","(4)"]
["Pages",null,null,"120-130"]
["Publication Date",null,"Indicate the year and month. (No need for the date.) ","2022.12"]
["【3rd】","Entry field","Important Notes on Input","Sample entry"]
["Title",null,"Please enter the scientific name in italics."]
["Authorship",null,"Please fill in the form using the sample as a reference.","Yamada. T., Tanaka. J., Sato, H. and Yamaguchi. S. （Last Name, First Name.）"]
["Name of Scientific Journal"]
["Volume",null,null,19]
["No.",null,"Please type in ( ).","(4)"]
["Pages",null,null,"120-130"]
["Publication Date",null,"Indicate the year and month. (No need for the date.) ","2022.12"]
["【4th】","Entry field","Important Notes on Input","Sample entry"]
["Title",null,"Please enter the scientific name in italics."]
["Authorship",null,"Please fill in the form using the sample as a reference.","Yamada. T., Tanaka. J., Sato, H. and Yamaguchi. S. （Last Name, First Name.）"]
["Name of Scientific Journal"]
["Volume",null,null,19]
["No.",null,"Please type in ( ).","(4)"]
["Pages",null,null,"120-130"]
["Publication Date",null,"Indicate the year and month. (No need for the date.) ","2022.12"]

{"sheet":"Format No.1-1","index":2,"n_rows":52,"n_cols":9,"rows_kept":52,"cut":false,"hidden":false,"merged":[[2,0,2,10],[5,8,5,10],[10,7,10,9],[14,5,14,10],[36,8,36,9],[26,8,26,9],[28,8,28,9],[30,8,30,9],[32,8,32,9],[34,8,34,9],[17,7,17,10],[48,0,48,10],[49,0,49,10],[50,0,50,10],[51,0,51,10],[38,8,38,9],[40,8,40,9],[42,8,42,9]]}
["（Format No.1-1）"]
[]
["APPLICATION FOR DOCTORAL DEGREE"]
[]
[]
[null,null,null,null,null,null,null,"Date：",{"$f":"'Data Entry Sheet'!B2","v":"00:00:00"}]
[]
["To Dean of The United Graduate School of"]
["Agricultural Sciences, Tottori University"]
[]
[null,null,null,"Name of Major Supervisor",null,null,null,{"$f":"'Data Entry Sheet'!B9","v":0}]
[]
[null,null,null,"Entrance Year",null,null,null,{"$f":"'Data Entry Sheet'!B5&\"（\"&'Data Entry Sheet'!B6&\"）\"","v":"（）"}]
[]
[null,null,null,"The Course of",null,{"$f":"'Data Entry Sheet'!B4&\",\"","v":","}]
[null,null,null,"The United Graduate School of Agricultural Sciences,"]
[null,null,null,"Tottori University"]
[null,null,null,"Name of Applicant",null,null,null,{"$f":"'Data Entry Sheet'!B3","v":0}]
[null,null,null,null,"Signature"]
[]
[null,"Herewith, I apply to acquire the doctoral degree, with providing the following"]
[null,"documents followed after the Regularity No. 4."]
[]
[]
[null,null,null,null,null,"Descriptions"]
[]
[null,"（１）　List of Publications：   ",null,null,null,null,null,null,"１copy"]
[]
[null,"（２）　Doctoral Dissertation： ",null,null,null,null,null,null,"１copy"]
[]
[null,"（３）　Summary of Doctoral  Dissertation： ",null,null,null,null,null,null,"１copy"]
[]
[null,"（４）　Major- and Sub-Papers Published in Distinguished Journals：",null,null,null,null,null,null,"Each 1 copy"]
[]
[null,"（５）　Curriculum Vitae：",null,null,null,null,null,null,"１copy"]
[]
[null,"（６）　Summary of Joint-Worked Publications：　      ",null,null,null,null,null,null,"Each 1 copy"]
[]
[null,"（７）　Agreement from Joint Author：",null,null,null,null,null,null,"Each 1 copy"]
[]
[null,"（８）　Notification Form of Internet Publication of Doctoral Dissertation：",null,null,null,null,null,null,"１copy"]
[]
[null,"（９）　Application for Publication of Doctoral Dissertation：",null,null,null,null,null,null,"１copy"]
[]
[null,"（10）　Electric Files of (2),(4)) (in PDF format)"]
[]
[]
["Notes:"]
[" 1.  Sub-publications should be submitted, if any."]
[" 2.  Summary of joint-worked publications and agreement from joint authors should be submitted, when these were published as joint work"]
[" 3.  The manuscript and the approval letter to show that manuscript was accepted by journals or publishers should be submitted."]
[" 4.  Application for Publication of Doctoral Thesis should be submitted only by the relevant applicants."]

{"sheet":"Format No.2-1","index":3,"n_rows":100,"n_cols":13,"rows_kept":100,"cut":false,"hidden":false,"merged":[[57,1,57,10],[57,12,57,16],[48,2,49,17],[45,2,46,17],[99,1,99,10],[99,12,99,16],[97,1,97,3],[91,2,92,17],[93,1,93,17],[94,1,94,17],[1,0,1,18],[10,1,10,17],[16,2,17,17],[4,11,5,18],[6,2,6,15],[13,2,14,17],[4,8,4,10],[53,2,53,3],[53,4,53,17],[78,1,78,17],[23,1,23,3],[39,1,39,3],[55,1,55,3],[25,1,25,10],[73,2,74,17],[29,2,30,17],[76,2,77,17],[61,0,61,18],[64,11,65,18],[66,2,67,17],[70,1,70,17],[32,2,33,17],[41,1,41,10],[36,1,36,17],[37,2,37,3],[37,4,37,17],[51,1,51,17],[52,1,52,17],[41,12,41,16],[79,1,79,17],[80,2,80,3],[80,4,80,17],[95,2,95,3],[95,4,95,17],[82,1,82,3],[88,2,89,17],[84,1,84,10],[84,12,84,16],[18,1,18,17],[19,1,19,17],[20,2,20,3],[20,4,20,17],[35,1,35,17],[25,12,25,16]]}
["（Format No. 2）"]
["LIST OF PUBLICATIONS"]
[]
[]
[null,null,null,null,null,null,null,null,"Name :",null,null,{"$f":"'Data Entry Sheet'!B3","v":0}]
[null,"Title of Doctoral Dissertation :"]
[null,null,"Effect of Delay Period and Subsequent Curing on the Freeze–Thaw Resistance of Steam-Cured Concrete"]
[]
[]
[]
[null,"Major Publications"]
[]
[]
[null,"１．Title :","Assessing characteristics of load–deflection relationship for reinforced concrete channels using the channel wall loading method"]
[]
[]
[null,"Authorship :",{"$f":"IF('Data Entry Sheet'!B16=\"\", \"\",'Data Entry Sheet'!B16)","v":""}]
[]
[null,"Full Name of Scientific Journal with Volume, Number and Pages :"]
[null,{"$f":"IF('Data Entry Sheet'!B17=\"\",\"\",'Data Entry Sheet'!B17&\"　\"&'Data Entry Sheet'!B18&('Data Entry Sheet'!B19)&\"：\"&'Data Entry Sheet'!B20)","v":""}]
[null,null,"doi:",null,{"$f":"IF('Data Entry Sheet'!B21=\"\", \"\",'Data Entry Sheet'!B21)","v":""}]
[]
[]
[null,"Pressed（Published online）:",null,null,"☑",null,"Accepted: "]
[]
[null,"Published date or accepted date for publication (expected date of publication):",null,null,null,null,null,null,null,null,null,null,"2025.12"]
[]
[]
[]
[null,"2．Title :","Effects of lime-based expansion material and freeze-thaw cycles on air-void blockage in concrete"]
[]
[]
[null,"Authorship :",{"$f":"IF('Data Entry Sheet'!B30=\"\", \"\",'Data Entry Sheet'!B30)","v":""}]
[]
[]
[null,"Full Name of Scientific Journal with Volume, Number and Pages :"]
[null,{"$f":"IF('Data Entry Sheet'!B31=\"\",\"\",'Data Entry Sheet'!B31&\"　\"&'Data Entry Sheet'!B32&('Data Entry Sheet'!B33&\"：\"&'Data Entry Sheet'!B34))","v":""}]
[null,null,"doi:",null,{"$f":"IF('Data Entry Sheet'!B35=\"\", \"\",'Data Entry Sheet'!B35)","v":""}]
[]
[null,"Pressed（Published online）:",null,null,"☑",null,"Accepted: "]
[]
[null,"Published date or accepted date for publication (expected date of publication):",null,null,null,null,null,null,null,null,null,null,"2023.12"]
[]
[]
[]
[null,"3．Title :","Effects of lime-based expansion material and freeze-thaw cycles on air-void blockage in concrete (3)"]
[]
[]
[null,"Authorship :",{"$f":"IF('Data Entry Sheet'!B44=\"\", \"\",'Data Entry Sheet'!B44)","v":""}]
[]
[]
[null,"Full Name of Scientific Journal with Volume, Number and Pages :"]
[null,{"$f":"IF('Data Entry Sheet'!B45=\"\",\"\",'Data Entry Sheet'!B45&\"　\"&'Data Entry Sheet'!B46&('Data Entry Sheet'!B47&\"：\"&'Data Entry Sheet'!B48))","v":""}]
[null,null,"doi:",null,{"$f":"IF('Data Entry Sheet'!B49=\"\", \"\",'Data Entry Sheet'!B49)","v":""}]
[]
[null,"Pressed（Published online）:",null,null,"☑",null,"Accepted: "]
[]
[null,"Published date or accepted date for publication (expected date of publication):",null,null,null,null,null,null,null,null,null,null,"2023.3"]
[]
[]
["（Format No. 2）"]
["LIST OF PUBLICATIONS"]
[]
[]
[null,null,null,null,null,null,null,null,"Name :",null,null,{"$f":"L5","v":0}]
[null,"Title of Doctoral Thesis Dissertation :"]
[null,null,"Effect of Delay Period and Subsequent Curing on the Freeze–Thaw Resistance of Steam-Cured Concrete"]
[]
[]
[]
[null,"Major Publications"]
[]
[]
[null,"4．Title :","Effects of lime-based expansion material and freeze-thaw cycles on air-void blockage in concrete (4)"]
[]
[]
[null,"Authorship :",{"$f":"IF('Data Entry Sheet'!B58=\"\", \"\",'Data Entry Sheet'!B58)","v":""}]
[]
[null,"Full Name of Scientific Journal with Volume, Number and Pages :"]
[null,{"$f":"IF('Data Entry Sheet'!B59=\"\",\"\",'Data Entry Sheet'!B59&\"　\"&'Data Entry Sheet'!B60&('Data Entry Sheet'!B61&\"：\"&'Data Entry Sheet'!B62))","v":""}]
[null,null,"doi:",null,{"$f":"IF('Data Entry Sheet'!B63=\"\", \"\",'Data Entry Sheet'!B63)","v":""}]
[]
[null,"Pressed（Published online）:",null,null,null,null,"Accepted: ","☑"]
[]
[null,"Published date or accepted date for publication (expected date of publication):",null,null,null,null,null,null,null,null,null,null,"2023.4.19"]
[]
[]
[]
[null,"5．Title :","Effects of lime-based expansion material and freeze-thaw cycles on air-void blockage in concrete (5)"]
[]
[]
[null,"Authorship :",{"$f":"IF('Data Entry Sheet'!B72=\"\", \"\",'Data Entry Sheet'!B72)","v":""}]
[]
[null,"Full Name of Scientific Journal with Volume, Number and Pages :"]
[null,{"$f":"IF('Data Entry Sheet'!B73=\"\",\"\",'Data Entry Sheet'!B73&\"　\"&'Data Entry Sheet'!B74&('Data Entry Sheet'!B75&\"：\"&'Data Entry Sheet'!B76))","v":""}]
[null,null,"doi:",null,{"$f":"IF('Data Entry Sheet'!B77=\"\", \"\",'Data Entry Sheet'!B77)","v":""}]
[]
[null,"Pressed（Published online）:",null,null,"☑",null,"Accepted: "]
[]
[null,"Published date or accepted date for publication (expected date of publication):",null,null,null,null,null,null,null,null,null,null,"2023.5"]

{"sheet":"Format No.2-2","index":4,"n_rows":34,"n_cols":5,"rows_kept":34,"cut":false,"hidden":false,"merged":[[2,0,2,5],[6,2,6,5],[4,2,5,5],[6,0,6,1],[14,0,14,1],[8,1,8,5],[30,2,30,5],[32,1,32,5],[12,2,13,5],[14,2,14,5],[20,2,21,5],[22,0,22,1],[30,0,30,1],[16,1,16,5],[24,1,24,5],[22,2,22,5],[28,2,29,5]]}
[]
[]
["Sub-Publications"]
[]
["　１．Title :",null,"The Factors Affecting Stability and Durability of Flow Diversion Simple Weirs in Muchinga Province of Zambia"]
[]
["Authorship :",null,{"$f":"IF('Data Entry Sheet'!B92=\"\", \"\",'Data Entry Sheet'!B92)","v":""}]
[null,"Full Name of Scientific Journal with Volume, Number and Pages :"]
[null,{"$f":"IF('Data Entry Sheet'!B93=\"\",\"\",'Data Entry Sheet'!B93&\"　\"&'Data Entry Sheet'!B94&('Data Entry Sheet'!B95&\"：\"&'Data Entry Sheet'!B96))","v":""}]
[null,"Published Date (Month and Year) :",null,null,{"$f":"IF('Data Entry Sheet'!B97=\"\", \"\",'Data Entry Sheet'!B97)","v":""}]
[]
[]
["　2．Title :",null,"Thermal stress analysis of cracks around the joints of the side wall of cast-in-place reinforced concrete open channels "]
[]
["Authorship :",null,{"$f":"IF('Data Entry Sheet'!B100=\"\", \"\",'Data Entry Sheet'!B100)","v":""}]
[null,"Full Name of Scientific Journal with Volume, Number and Pages :"]
[null,{"$f":"IF('Data Entry Sheet'!B101=\"\",\"\",'Data Entry Sheet'!B101&\"　\"&'Data Entry Sheet'!B102&('Data Entry Sheet'!B103&\"：\"&'Data Entry Sheet'!B104))","v":""}]
[null,"Published Date (Month and Year) :",null,null,{"$f":"IF('Data Entry Sheet'!B105=\"\", \"\",'Data Entry Sheet'!B105)","v":""}]
[]
[]
["　3．Title :",null,"Thermal stress analysis of cracks around the joints of the side wall of cast-in-place reinforced concrete open channels (3)"]
[]
["Authorship :",null,{"$f":"IF('Data Entry Sheet'!B108=\"\", \"\",'Data Entry Sheet'!B108)","v":""}]
[null,"Full Name of Scientific Journal with Volume, Number and Pages :"]
[null,{"$f":"IF('Data Entry Sheet'!B109=\"\",\"\",'Data Entry Sheet'!B109&\"　\"&'Data Entry Sheet'!B110&('Data Entry Sheet'!B111&\"：\"&'Data Entry Sheet'!B112))","v":""}]
[null,"Published Date (Month and Year) :",null,null,{"$f":"IF('Data Entry Sheet'!B113=\"\", \"\",'Data Entry Sheet'!B113)","v":""}]
[]
[]
["　4．Title :",null,"Thermal stress analysis of cracks around the joints of the side wall of cast-in-place reinforced concrete open channels (4)"]
[]
["Authorship :",null,{"$f":"IF('Data Entry Sheet'!B116=\"\", \"\",'Data Entry Sheet'!B116)","v":""}]
[null,"Full Name of Scientific Journal with Volume, Number and Pages :"]
[null,{"$f":"IF('Data Entry Sheet'!B117=\"\",\"\",'Data Entry Sheet'!B117&\"　\"&'Data Entry Sheet'!B118&('Data Entry Sheet'!B119&\"：\"&'Data Entry Sheet'!B120))","v":""}]
[null,"Published Date (Month and Year) :",null,null,{"$f":"IF('Data Entry Sheet'!B121=\"\", \"\",'Data Entry Sheet'!B121)","v":""}]

{"sheet":"Format No.3","index":5,"n_rows":10,"n_cols":6,"rows_kept":10,"cut":false,"hidden":false,"merged":[[9,0,10,8],[1,0,1,8],[5,1,5,8],[6,1,6,8],[7,0,8,8],[3,5,3,8]]}
["（Format No. 3）"]
["SUMMARY OF DOCTORAL DISSERTATION"]
[]
[null,null,null,null,"Name：",{"$f":"'Data Entry Sheet'!B3","v":0}]
[]
["Title:","Effect of Delay Period and Subsequent Curing on the Freeze–Thaw Resistance of Steam-Cured Concrete"]
[null,"(蒸気養生コンクリートの凍結融解抵抗性に対する前養生時間及び二次養生の影響)"]
["  Precast concrete (PCa) manufactured in factories allows for control of the manufacturing environment, enabling more uniform quality in terms of mechanical properties and durability in comparison with cast-in-place concrete. A requirement of concrete structures built in snowy, cold regions is to ensure freeze–thaw resistance, a component of durability, and this applies to PCa as well.\nGenerally, PCa undergoes a delay period from the time cement is mixed with water until curing begins, followed by atmospheric pressure steam curing using high-temperature steam. Steam curing involves a temperature-raising process, an isothermal holding process, and a temperature-lowering process. After demolding, subsequent curing, such as water curing or air curing, is performed for a specified period (14–28 days) before shipment. The purpose of steam curing is to accelerate the hydration reaction by transferring heat and humidity to the concrete, thereby improving productivity through early strength development [1–3]. The influence of different manufacturing conditions on the durability of PCa has been investigated in various ways. The acceleration of hardening by steam curing is known to affect the microstructure, mechanical properties, and durability of concrete in comparison with standard curing conditions [4–7].\n  Kjellsen and Detwiler suggested that steam curing can cause non-uniform distribution of hydration products, pore coarsening, and adverse effects on the pore structure [8]. Shi et al. reported that steam curing at high temperatures coarsens pores in the interfacial transition zone (ITZ) and causes visible microcracks [9]. Gao et al. reported that steam curing affects the pore structure within the cement matrix, which is a direct factor in the mechanical properties, permeability, frost resistance, and abrasion resistance of concrete [10]. They also pointed out that ensuring a certain delay period is advantageous for strength and durability. Hanson reported that increasing the delay period from 1 to 5 h increases compressive strength, and that horizontal cracks occur when the delay period is 1 h [11]. As a result of capillary permeability tests with delay periods of 1, 2, and 3 h, Ramezanianpour et al. reported that the capillary water absorption rate is highest when the delay period is 1 h [12]. The subsequent curing period until shipment is also important for ensuring the quality of steam-cured concrete. However, scant research has been conducted on subsequent curing. Liu et al. reported that subsequent water curing allows water to penetrate into the concrete, promoting the hydration of unhydrated cement (the “recovery effect,” below), resulting in superior compressive strength, capillary permeability, gas permeability, and pore structure in comparison with air curing [13]. According to other reports, subsequent water curing densifies the concrete [14, 15]. Zou et al., based on TG-DTA analysis, reported that subsequent water curing increases porosity and decreases C-H content, showing results different from those of other researchers in terms of the superiority of water curing [16].\n  Stress due to freeze–thaw action occurs as a result of pore pressure due to water freezing in the concrete’s pores and the movement of unfrozen water as the temperature drops. When this stress exceeds the material’s strength, microcracks form [17–19]. As the freeze–thaw action repeats, microcracks expand and interconnect. Deterioration caused by freeze–thaw action depends on the properties of the concrete material [20, 21]. These properties include the water-binder ratio (w/c or W/B), aggregates, mineral admixtures, and pore structure. The void structure formed in early-age concrete includes microcracks (initial damage) that occur within the material and entrained air bubbles intentionally introduced by the addition of air-entraining agents and the like [22]. Of these, the microcracks are minute defects caused by thermal shrinkage during the hydration reaction or by restraint conditions, and they are prone to propagate and connect due to expansion pressure during freezing. Voids in hardened concrete include gel pores with diameters of several nanometers, and capillary voids and air bubbles of several micrometers to several millimeters. When concrete is underwater, capillary voids are in a saturated state, but air bubbles do not reach saturation at normal pressure [23]. Also, capillary voids freeze at –12 °C, while water molecules in gel pores do not freeze above –78 °C [24]. Therefore, capillary voids are highly likely to be detrimental pores. This also indicates that freeze–thaw resistance and pore structure are closely related.\n"]
[]
["  Sicat et al. reported that the water absorption rate of concrete governs the expansion and contraction due to freeze–thaw action [25]. Water transport in porous concrete can be classified into three types: capillary penetration, diffusion, and permeation [26, 27], but under actual service conditions, it is governed by diffusion and capillary penetration [28–30]. Capillary penetration is caused by surface tension and occurs in pores (10 μm to 10 nm), where the force arising from surface tension is in the same range as the gravitational force present within the liquid [31]. Wang et al. reported that as the pore volume increases in the pore diameter range of 10 to 50 nm, capillary permeability tends to increase [32]. Zhang et al. reported that the void structure of the permeation surface affects capillary permeability, and that capillary permeability increases as the number of freeze–thaw cycles increases [33]. Air bubbles, which are larger than gel pores and capillary voids, account for the majority of the air volume in concrete and are therefore a major factor affecting freeze–thaw resistance [34–36]. To improve the freeze–thaw resistance of concrete, it is necessary not only to reduce initial damage and densify it, but also to entrain fine air bubbles (entrained air) using admixtures such as air-entraining agents [37, 38]. The hydraulic pressure theory proposed by Powers et al. can explain the effect of entrained air [39]. Entrained air is distributed in a diameter range of about 10 to 500 μm and alleviates the pressure generated when free water freezes. The alleviation of hydraulic pressure by entrained air is considered good if the air-void spacing factor, which represents the distance between each air bubble, is 250 μm or less. Zhang et al. reported that if air bubbles, including entrained air, are non-uniformly distributed, the air-void spacing factor becomes large, and if it exceeds 300 μm, freeze–thaw resistance decreases [40].\n  As described above, the effects of manufacturing conditions for PCa, including steam curing, delay period, and subsequent curing, on the mechanical properties and durability of concrete have been individually studied, but their relation with freeze–thaw resistance has not been sufficiently investigated. In this study, specimens were steam-cured with delay periods set before and after the initial setting time, after the final setting time, and after hardening, based on the concrete’s setting time, and subsequently subjected to water curing and air curing. The freeze–thaw resistance was then evaluated, along with the contributing factors of capillary permeability and pore structure.\n  Series 2 used ordinary Portland cement (Taiheiyo Cement Corporation; density: 3.16 g/cm³). The fine aggregate was processed sand, which is crushed sand of weathered granite (density: 2.58 g/cm³; fineness modulus: 2.58%), and the coarse aggregate was crushed stone 1505 (density: 2.72 g/cm³; fineness modulus: 6.40%). The chemical admixture was a high-range AE water-reducing admixture with a carboxyl group-containing polyether compound as the main component (Kao Corporation; density: 1.05 g/cm³). The concrete for Series 2 was manufactured at a concrete secondary products factory and was mixed twice. The first batch was for concrete to be steam-cured after a long delay period (after final setting time), and the second batch was for concrete to be steam-cured after a short delay period (before initial setting time). The fresh properties were as follows: slump 19.0 cm and air content 4.5% for the first batch, and slump 6.5 cm and air content 5.5% for the second batch."]

{"sheet":"Format No.5(1)","index":6,"n_rows":33,"n_cols":7,"rows_kept":33,"cut":false,"hidden":false,"merged":[[32,1,38,8],[1,0,1,9],[11,1,29,8],[4,2,5,8],[8,2,9,8],[2,6,2,8],[4,0,4,1],[8,0,8,1],[10,0,10,1]]}
["（Format No. 5）"]
["SUMMARY OF JOINT-WORKED PUBLICATION"]
[null,null,null,null,null,"Name：",{"$f":"'Data Entry Sheet'!B3","v":0}]
[]
["Title:",null,"Assessing characteristics of load–deflection relationship for reinforced concrete channels using the channel wall loading method"]
[]
[]
[]
["Authorship：",null,"Mimura, Y., Hyodo, M., Ishii, M., Ogata, H., Betto, Y. and Kaneko, H."]
[]
["Summary："]
[null,"Springer Nature or its licensor (e.g. a society or other partner) holds exclusive rights to this article under a publishing agreement with the author(s) or other rightsholder(s); author self-archiving of the accepted manuscript version of this article is solely governed by the terms of such publishing agreement and applicable law."]
[]
[]
[]
[]
[]
[]
[]
[]
[]
[]
[]
[]
[]
[]
[]
[]
[]
[]
[]
[null,"Applicant's research allocation in the publication："]
[null,"Authors use the channel wall loading method to assess the structural stiffness of reinforced concrete open channels used for agricultural irrigation. Our previous studies have focused on verifying the accuracy of this method in laboratory experiments on secondary concrete products. "]

{"sheet":"Format No.5(2)","index":7,"n_rows":33,"n_cols":7,"rows_kept":33,"cut":false,"hidden":false,"merged":[[10,0,10,1],[11,1,29,8],[32,1,38,8],[1,0,1,9],[2,6,2,8],[4,0,4,1],[4,2,5,8],[8,0,8,1],[8,2,9,8]]}
["（Format No. 5）"]
["SUMMARY OF JOINT-WORKED PUBLICATION"]
[null,null,null,null,null,"Name：",{"$f":"'Data Entry Sheet'!B3","v":0}]
[]
["Title:",null,"Effects of lime-based expansion material and freeze-thaw cycles on air-void blockage in concrete"]
[]
[]
[]
["Authorship：",null,"Ogata, H., Otsuka, M., Hyodo, M. and Ikadatsu, H."]
[]
["Summary："]
[null,"Air voids in concrete are sometimes observed to be blocked by white precipitates. In this study, the authors conducted freeze-thaw tests on concrete mixed with lime-based expansion material and then performed microscopic observations using scanning electron microscopy, elemental analysis using energy-dispersive X-ray spectroscopy. The size distributions of air voids in the concrete durin"]
[]
[]
[]
[]
[]
[]
[]
[]
[]
[]
[]
[]
[]
[]
[]
[]
[]
[]
[]
[null,"Applicant's research allocation in the publication："]
[null,"During the curing period, no air-void blockage was observed. However, as the concrete aged, precipitates formed on the During the curing period, no air-void blockage was observed. However, as the concrete aged, precipitates formed on the During the curing period, no air-void blockage was observed. However, as the concrete aged, precipitates formed on the "]

{"sheet":"Format No.5(3)","index":8,"n_rows":33,"n_cols":7,"rows_kept":33,"cut":false,"hidden":false,"merged":[[10,0,10,1],[11,1,29,8],[32,1,38,8],[1,0,1,9],[2,6,2,8],[4,0,4,1],[4,2,5,8],[8,0,8,1],[8,2,9,8]]}
["（Format No. 5）"]
["SUMMARY OF JOINT-WORKED PUBLICATION"]
[null,null,null,null,null,"Name：",{"$f":"'Data Entry Sheet'!B3","v":0}]
[]
["Title:",null,"Effects of lime-based expansion material and freeze-thaw cycles on air-void blockage in concrete (3)"]
[]
[]
[]
["Authorship：",null,"Ogata, H., Otsuka, M., Hyodo, M. and Ikadatsu, H."]
[]
["Summary："]
[null,"Air voids in concrete are sometimes observed to be blocked by white precipitates. In this study, the authors conducted freeze-thaw tests on concrete mixed with lime-based expansion material and then performed microscopic observations using scanning electron microscopy, elemental analysis using energy-dispersive X-ray spectroscopy. The size distributions of air voids in the concrete durin (3)"]
[]
[]
[]
[]
[]
[]
[]
[]
[]
[]
[]
[]
[]
[]
[]
[]
[]
[]
[]
[null,"Applicant's research allocation in the publication："]
[null,"During the curing period, no air-void blockage was observed. However, as the concrete aged, precipitates formed on the During the curing period, no air-void blockage was observed. However, as the concrete aged, precipitates formed on the During the curing period, no air-void blockage was observed. However, as the concrete aged, precipitates formed on the  (3)"]

{"sheet":"Format No.5(4)","index":9,"n_rows":33,"n_cols":7,"rows_kept":33,"cut":false,"hidden":false,"merged":[[10,0,10,1],[11,1,29,8],[32,1,38,8],[1,0,1,9],[2,6,2,8],[4,0,4,1],[4,2,5,8],[8,0,8,1],[8,2,9,8]]}
["（Format No. 5）"]
["SUMMARY OF JOINT-WORKED PUBLICATION"]
[null,null,null,null,null,"Name：",{"$f":"'Data Entry Sheet'!B3","v":0}]
[]
["Title:",null,"Effects of lime-based expansion material and freeze-thaw cycles on air-void blockage in concrete (4)"]
[]
[]
[]
["Authorship：",null,"Ogata, H., Otsuka, M., Hyodo, M. and Ikadatsu, H."]
[]
["Summary："]
[null,"Air voids in concrete are sometimes observed to be blocked by white precipitates. In this study, the authors conducted freeze-thaw tests on concrete mixed with lime-based expansion material and then performed microscopic observations using scanning electron microscopy, elemental analysis using energy-dispersive X-ray spectroscopy. The size distributions of air voids in the concrete durin (4)"]
[]
[]
[]
[]
[]
[]
[]
[]
[]
[]
[]
[]
[]
[]
[]
[]
[]
[]
[]
[null,"Applicant's research allocation in the publication："]
[null,"During the curing period, no air-void blockage was observed. However, as the concrete aged, precipitates formed on the During the curing period, no air-void blockage was observed. However, as the concrete aged, precipitates formed on the During the curing period, no air-void blockage was observed. However, as the concrete aged, precipitates formed on the  (4)"]

{"sheet":"Format No.5(5)","index":10,"n_rows":33,"n_cols":7,"rows_kept":33,"cut":false,"hidden":false,"merged":[[10,0,10,1],[11,1,29,8],[32,1,38,8],[1,0,1,9],[2,6,2,8],[4,0,4,1],[4,2,5,8],[8,0,8,1],[8,2,9,8]]}
["（Format No. 5）"]
["SUMMARY OF JOINT-WORKED PUBLICATION"]
[null,null,null,null,null,"Name：",{"$f":"'Data Entry Sheet'!B3","v":0}]
[]
["Title:",null,"Effects of lime-based expansion material and freeze-thaw cycles on air-void blockage in concrete (5)"]
[]
[]
[]
["Authorship：",null,"Ogata, H., Otsuka, M., Hyodo, M. and Ikadatsu, H."]
[]
["Summary："]
[null,"Air voids in concrete are sometimes observed to be blocked by white precipitates. In this study, the authors conducted freeze-thaw tests on concrete mixed with lime-based expansion material and then performed microscopic observations using scanning electron microscopy, elemental analysis using energy-dispersive X-ray spectroscopy. The size distributions of air voids in the concrete durin (5)"]
[]
[]
[]
[]
[]
[]
[]
[]
[]
[]
[]
[]
[]
[]
[]
[]
[]
[]
[]
[null,"Applicant's research allocation in the publication："]
[null,"During the curing period, no air-void blockage was observed. However, as the concrete aged, precipitates formed on the During the curing period, no air-void blockage was observed. However, as the concrete aged, precipitates formed on the During the curing period, no air-void blockage was observed. However, as the concrete aged, precipitates formed on the  (5)"]

{"sheet":"Format No.4","index":11,"n_rows":65,"n_cols":6,"rows_kept":65,"cut":false,"hidden":false,"merged":[[1,0,1,5],[20,0,20,5],[21,1,21,5],[8,1,8,5],[15,1,15,5],[16,1,16,5],[5,1,5,5],[6,1,6,5],[7,0,7,5],[4,2,4,3],[4,4,4,5],[9,1,9,5],[10,1,10,5],[11,1,11,5],[12,1,12,5],[13,1,13,5],[59,1,59,5],[60,1,60,5],[51,1,51,5],[53,1,53,5],[54,1,54,5],[55,1,55,5],[56,1,56,5],[57,1,57,5],[46,1,46,5],[47,1,47,5],[48,1,48,5],[49,1,49,5],[58,1,58,5],[63,1,63,5],[52,0,52,5],[64,0,64,5],[34,0,34,5],[61,1,61,5],[62,1,62,5],[50,1,50,5],[39,1,39,5],[40,1,40,5],[41,1,41,5],[42,1,42,5],[43,1,43,5],[44,1,44,5],[37,0,37,5],[38,0,38,5],[45,1,45,5],[31,1,31,5],[32,0,32,5],[33,0,33,5],[35,0,35,5],[36,0,36,5],[14,1,14,5],[30,1,30,5],[17,1,17,5],[18,1,18,5],[19,1,19,5],[22,1,22,5],[23,1,23,5],[26,1,26,5],[27,1,27,5],[24,1,24,5],[25,1,25,5],[28,1,28,5],[29,1,29,5]]}
["（様式第４号）"]
["CURRICULUM VITAE"]
[]
["Name (in print)",{"$f":"'Data Entry Sheet'!B3","v":0},"Male","□","Female","□"]
["Date of Birth",null,"Age"]
["Nationality"]
["Present Address"]
["Education (since High School, in chronological order, including research student if any)"]
["Date\n(Month, Year)","Name of Schools"]
[]
[]
[]
[]
[]
[]
[]
[]
[]
[]
[]
["History of Employment (including JSPS Fellowship)"]
["Date\n(Month, Year)","Name of Employers and Job Title\n (If it is on research experience, write a summary of it.)"]
[]
[]
[]
[]
[]
[]
[]
[]
[]
[]
["Full Name of Scientific Societies Joined"]
[]
[]
[]
[]
[]
["Presentation at Scientific Societies and Social Activities"]
["Date\n(Day, Month, Year)","Descriptions"]
[]
[]
[]
[]
[]
[]
[]
[]
[]
[]
[]
[]
["Qualification"]
["Date\n(Day, Month, Year)","Subjects"]
[]
[]
[]
[]
[]
[]
[]
[]
[]
[]
["・Describe chronologically in Anno Domini. Your present position and title must be entered in the history of education or employment and add ‘to present’."]

{"sheet":"Format No.12","index":12,"n_rows":43,"n_cols":9,"rows_kept":43,"cut":false,"hidden":false,"merged":[[36,8,36,11],[42,2,42,9],[37,7,37,10],[24,6,24,7],[2,1,2,11],[11,1,13,11],[27,3,31,10],[18,4,21,10],[4,8,4,11],[6,1,7,7],[15,2,15,10],[26,2,26,11],[8,7,8,11]]}
["（Format No.12）"]
[]
[null,"APPLICATION FOR PUBLICATION OF DOCTORAL DISSERTATION"]
[]
[null,null,null,null,null,null,null,null,{"$f":"'Data Entry Sheet'!B2","v":"00:00:00"}]
[]
[null,"To Dean of the United Graduate School of\nAgricultural Sciences, Tottori University"]
[]
[null,null,null,null,"Name of Applicant:",null,null,{"$f":"'Data Entry Sheet'!B3","v":0}]
[null,null,null,null,null,"Signature:"]
[]
[null,"  With regard to the publication of the doctoral dissertation set forth in the provisions of Article 11 of the Doctoral Degree Regulations of Tottori University, pursuant to the provisions of Paragraph 2 of said Article, I hereby apply for the publication of the summary of the doctoral dissertation, in lieu of the full text thereof, for the duration of three years after the date of conferment of a doctoral degree, for the following reason:"]
[]
[]
[]
[null,null,"Description"]
[]
[null,null,"1. Title of Doctoral Dissertation:"]
[null,null,null,null,"Effect of Delay Period and Subsequent Curing on the Freeze–Thaw Resistance of Steam-Cured Concrete"]
[]
[]
[]
[]
[null,"2. Name of Examiner (Chief Examiner):"]
[null,null,null,null,null,null,{"$f":"'Data Entry Sheet'!B9","v":0}]
[]
[null,null,"3. Reason for the Inability to Publish the Full Text of Doctoral Dissertation:"]
[]
[]
[]
[]
[]
[]
[null,"(Confirmation Section)"]
[]
[null,null,"I have duly confirmed the content of the above application."]
[null,null,"Name of Major (Recommending) Supervisor:",null,null,null,null,null,{"$f":"'Data Entry Sheet'!B9","v":0}]
[null,null,null,null,null,"Signature:"]
[]
[]
[null,"(Section for Clerical Details)"]
[]
[null,null,"Date of Conferment of Doctoral Degree:"]

{"sheet":"Format No.6(1)","index":13,"n_rows":53,"n_cols":14,"rows_kept":53,"cut":false,"hidden":false,"merged":[[2,0,2,18],[29,1,29,3],[4,13,4,18],[9,7,9,10],[8,11,8,18],[9,11,9,18],[23,4,24,17],[6,1,6,7],[8,5,8,10],[10,4,10,8],[10,9,12,18],[13,2,15,17],[30,1,30,18],[47,0,51,17],[52,0,52,17],[31,7,31,16],[18,2,19,17]]}
["（Format No. 6）"]
[]
["AGREEMENT"]
[]
[null,null,null,null,null,null,null,null,null,null,null,"Date：",null,{"$f":"'Data Entry Sheet'!B2","v":"00:00:00"}]
[]
[null,"To Dean of the United Graduate School of\nAgricultural Sciences, Tottori University"]
[]
[null,null,null,null,null,"Name of Major Supervisor：",null,null,null,null,null,{"$f":"'Data Entry Sheet'!B9","v":0}]
[null,null,null,null,null,null,null,"Signature:"]
[null,null,null,null,"Institute and Title of Position:",null,null,null,null,{"$f":"'Data Entry Sheet'!B10&\"・\"&'Data Entry Sheet'!B11","v":"・"}]
[]
[null,"Title of Publication："]
[null,null,"Assessing characteristics of load–deflection relationship for reinforced concrete channels using the channel wall loading method"]
[]
[]
[]
[]
[null,"Authorship :",{"$f":"IF('Format No.2-1'!C17=\"\", \"\",'Format No.2-1'!C17)","v":""}]
[]
[]
[]
[null,"Full Name of Scientific Journal with Volume, Number and Pages :"]
[null,null,null,null,{"$f":"IF('Format No.2-1'!E19=\"\", \"\",'Format No.2-1'!E19)","v":""}]
[]
[]
[]
[]
[]
[null,"Pressed（Published online）:",null,null,{"$f":"IF('Format No.2-1'!E24=\"\", \"\",'Format No.2-1'!E24)","v":"☑"},null,"Accepted:",{"$f":"IF('Format No.2-1'!H24=\"\", \"\",'Format No.2-1'!H24)","v":""}]
[null,"Published date or accepted date for publication (expected date for publication if available):"]
[null,null,null,null,null,null,null,{"$f":"IF('Format No.2-1'!H26=\"\", \"\",'Format No.2-1'!H26)","v":""}]
[]
[]
[]
[]
[]
[]
[]
[]
[]
[]
[]
[]
[]
[]
[]
[{"$f":"\"I have confirmed co-authors of above joint-worked publication agree that (\"&'Data Entry Sheet'!B3&_xlfn._LONGTEXT(\") uses our present joint-worked publication as a part of his/her Major Papers that form the basis of his/her Doctoral Thesis. Also, I have confirmed that this publication was not used and will not be used as Major Papers that form basis of Doctoral Thesis\",\" of co-authors of above joint-worked publication in future. \")","v":{"$error":"#NAME?"}}]
[]
[]
[]
[]
["*; the first author of above described article\""]

{"sheet":"Format No.6(2)","index":14,"n_rows":53,"n_cols":14,"rows_kept":53,"cut":false,"hidden":false,"merged":[[9,7,9,10],[9,11,9,18],[2,0,2,18],[4,13,4,18],[6,1,6,7],[8,5,8,10],[8,11,8,18],[30,1,30,18],[31,7,31,16],[47,0,51,17],[52,0,52,17],[10,4,10,8],[10,9,12,18],[13,2,15,17],[18,2,19,17],[23,4,24,17],[29,1,29,3]]}
["（Format No. 6）"]
[]
["AGREEMENT"]
[]
[null,null,null,null,null,null,null,null,null,null,null,"Date：",null,{"$f":"'Data Entry Sheet'!B2","v":"00:00:00"}]
[]
[null,"To Dean of the United Graduate School of\nAgricultural Sciences, Tottori University"]
[]
[null,null,null,null,null,"Name of Major Supervisor：",null,null,null,null,null,{"$f":"'Data Entry Sheet'!B9","v":0}]
[null,null,null,null,null,null,null,"Signature:"]
[null,null,null,null,"Institute and Title of Position:",null,null,null,null,{"$f":"'Data Entry Sheet'!B10&\"・\"&'Data Entry Sheet'!B11","v":"・"}]
[]
[null,"Title of Publication："]
[null,null,"Effects of lime-based expansion material and freeze-thaw cycles on air-void blockage in concrete"]
[]
[]
[]
[]
[null,"Authorship :",{"$f":"IF('Format No.2-1'!C33=\"\", \"\",'Format No.2-1'!C33)","v":""}]
[]
[]
[]
[null,"Full Name of Scientific Journal with Volume, Number and Pages :"]
[null,null,null,null,{"$f":"IF('Format No.2-1'!E19=\"\", \"\",'Format No.2-1'!E19)","v":""}]
[]
[]
[]
[]
[]
[null,"Pressed（Published online）:",null,null,{"$f":"IF('Format No.2-1'!E24=\"\", \"\",'Format No.2-1'!E24)","v":"☑"},null,"Accepted:",{"$f":"IF('Format No.2-1'!H24=\"\", \"\",'Format No.2-1'!H24)","v":""}]
[null,"Published date or accepted date for publication (expected date for publication if available):"]
[null,null,null,null,null,null,null,{"$f":"IF('Format No.2-1'!H26=\"\", \"\",'Format No.2-1'!H26)","v":""}]
[]
[]
[]
[]
[]
[]
[]
[]
[]
[]
[]
[]
[]
[]
[]
[{"$f":"\"I have confirmed co-authors of above joint-worked publication agree that (\"&'Data Entry Sheet'!B3&_xlfn._LONGTEXT(\") uses our present joint-worked publication as a part of his/her Major Papers that form the basis of his/her Doctoral Thesis. Also, I have confirmed that this publication was not used and will not be used as Major Papers that form basis of Doctoral Thesis\",\" of co-authors of above joint-worked publication in future. \")","v":{"$error":"#NAME?"}}]
[]
[]
[]
[]
["*; the first author of above described article\""]

{"sheet":"Format No.6(3)","index":15,"n_rows":53,"n_cols":14,"rows_kept":53,"cut":false,"hidden":false,"merged":[[9,7,9,10],[9,11,9,18],[2,0,2,18],[4,13,4,18],[6,1,6,7],[8,5,8,10],[8,11,8,18],[30,1,30,18],[31,7,31,16],[47,0,51,17],[52,0,52,17],[10,4,10,8],[10,9,12,18],[13,2,15,17],[18,2,19,17],[23,4,24,17],[29,1,29,3]]}
["（Format No. 6）"]
[]
["AGREEMENT"]
[]
[null,null,null,null,null,null,null,null,null,null,null,"Date：",null,{"$f":"'Data Entry Sheet'!B2","v":"00:00:00"}]
[]
[null,"To Dean of the United Graduate School of\nAgricultural Sciences, Tottori University"]
[]
[null,null,null,null,null,"Name of Major Supervisor：",null,null,null,null,null,{"$f":"'Data Entry Sheet'!B9","v":0}]
[null,null,null,null,null,null,null,"Signature:"]
[null,null,null,null,"Institute and Title of Position:",null,null,null,null,{"$f":"'Data Entry Sheet'!B10&\"・\"&'Data Entry Sheet'!B11","v":"・"}]
[]
[null,"Title of Publication："]
[null,null,"Effects of lime-based expansion material and freeze-thaw cycles on air-void blockage in concrete (3)"]
[]
[]
[]
[]
[null,"Authorship :",{"$f":"IF('Format No.2-1'!C49=\"\", \"\",'Format No.2-1'!C49)","v":""}]
[]
[]
[]
[null,"Full Name of Scientific Journal with Volume, Number and Pages :"]
[null,null,null,null,{"$f":"IF('Format No.2-1'!E19=\"\", \"\",'Format No.2-1'!E19)","v":""}]
[]
[]
[]
[]
[]
[null,"Pressed（Published online）:",null,null,{"$f":"IF('Format No.2-1'!E24=\"\", \"\",'Format No.2-1'!E24)","v":"☑"},null,"Accepted:",{"$f":"IF('Format No.2-1'!H24=\"\", \"\",'Format No.2-1'!H24)","v":""}]
[null,"Published date or accepted date for publication (expected date for publication if available):"]
[null,null,null,null,null,null,null,{"$f":"IF('Format No.2-1'!H26=\"\", \"\",'Format No.2-1'!H26)","v":""}]
[]
[]
[]
[]
[]
[]
[]
[]
[]
[]
[]
[]
[]
[]
[]
[{"$f":"\"I have confirmed co-authors of above joint-worked publication agree that (\"&'Data Entry Sheet'!B3&_xlfn._LONGTEXT(\") uses our present joint-worked publication as a part of his/her Major Papers that form the basis of his/her Doctoral Thesis. Also, I have confirmed that this publication was not used and will not be used as Major Papers that form basis of Doctoral Thesis\",\" of co-authors of above joint-worked publication in future. \")","v":{"$error":"#NAME?"}}]
[]
[]
[]
[]
["*; the first author of above described article\""]

{"sheet":"Format No.6(4)","index":16,"n_rows":53,"n_cols":14,"rows_kept":53,"cut":false,"hidden":false,"merged":[[9,7,9,10],[9,11,9,18],[2,0,2,18],[4,13,4,18],[6,1,6,7],[8,5,8,10],[8,11,8,18],[30,1,30,18],[31,7,31,16],[47,0,51,17],[52,0,52,17],[10,4,10,8],[10,9,12,18],[13,2,15,17],[18,2,19,17],[23,4,24,17],[29,1,29,3]]}
["（Format No. 6）"]
[]
["AGREEMENT"]
[]
[null,null,null,null,null,null,null,null,null,null,null,"Date：",null,{"$f":"'Data Entry Sheet'!B2","v":"00:00:00"}]
[]
[null,"To Dean of the United Graduate School of\nAgricultural Sciences, Tottori University"]
[]
[null,null,null,null,null,"Name of Major Supervisor：",null,null,null,null,null,{"$f":"'Data Entry Sheet'!B9","v":0}]
[null,null,null,null,null,null,null,"Signature:"]
[null,null,null,null,"Institute and Title of Position:",null,null,null,null,{"$f":"'Data Entry Sheet'!B10&\"・\"&'Data Entry Sheet'!B11","v":"・"}]
[]
[null,"Title of Publication："]
[null,null,"Effects of lime-based expansion material and freeze-thaw cycles on air-void blockage in concrete (4)"]
[]
[]
[]
[]
[null,"Authorship :",{"$f":"IF('Format No.2-1'!C77=\"\", \"\",'Format No.2-1'!C77)","v":""}]
[]
[]
[]
[null,"Full Name of Scientific Journal with Volume, Number and Pages :"]
[null,null,null,null,{"$f":"IF('Format No.2-1'!E19=\"\", \"\",'Format No.2-1'!E19)","v":""}]
[]
[]
[]
[]
[]
[null,"Pressed（Published online）:",null,null,{"$f":"IF('Format No.2-1'!E24=\"\", \"\",'Format No.2-1'!E24)","v":"☑"},null,"Accepted:",{"$f":"IF('Format No.2-1'!H24=\"\", \"\",'Format No.2-1'!H24)","v":""}]
[null,"Published date or accepted date for publication (expected date for publication if available):"]
[null,null,null,null,null,null,null,{"$f":"IF('Format No.2-1'!H26=\"\", \"\",'Format No.2-1'!H26)","v":""}]
[]
[]
[]
[]
[]
[]
[]
[]
[]
[]
[]
[]
[]
[]
[]
[{"$f":"\"I have confirmed co-authors of above joint-worked publication agree that (\"&'Data Entry Sheet'!B3&_xlfn._LONGTEXT(\") uses our present joint-worked publication as a part of his/her Major Papers that form the basis of his/her Doctoral Thesis. Also, I have confirmed that this publication was not used and will not be used as Major Papers that form basis of Doctoral Thesis\",\" of co-authors of above joint-worked publication in future. \")","v":{"$error":"#NAME?"}}]
[]
[]
[]
[]
["*; the first author of above described article\""]

{"sheet":"Format No.6(5)","index":17,"n_rows":53,"n_cols":14,"rows_kept":53,"cut":false,"hidden":false,"merged":[[9,7,9,10],[9,11,9,18],[2,0,2,18],[4,13,4,18],[6,1,6,7],[8,5,8,10],[8,11,8,18],[30,1,30,18],[31,7,31,16],[47,0,51,17],[52,0,52,17],[10,4,10,8],[10,9,12,18],[13,2,15,17],[18,2,19,17],[23,4,24,17],[29,1,29,3]]}
["（Format No. 6）"]
[]
["AGREEMENT"]
[]
[null,null,null,null,null,null,null,null,null,null,null,"Date：",null,{"$f":"'Data Entry Sheet'!B2","v":"00:00:00"}]
[]
[null,"To Dean of the United Graduate School of\nAgricultural Sciences, Tottori University"]
[]
[null,null,null,null,null,"Name of Major Supervisor：",null,null,null,null,null,{"$f":"'Data Entry Sheet'!B9","v":0}]
[null,null,null,null,null,null,null,"Signature:"]
[null,null,null,null,"Institute and Title of Position:",null,null,null,null,{"$f":"'Data Entry Sheet'!B10&\"・\"&'Data Entry Sheet'!B11","v":"・"}]
[]
[null,"Title of Publication："]
[null,null,"Effects of lime-based expansion material and freeze-thaw cycles on air-void blockage in concrete (5)"]
[]
[]
[]
[]
[null,"Authorship :",{"$f":"IF('Format No.2-1'!C92=\"\", \"\",'Format No.2-1'!C92)","v":""}]
[]
[]
[]
[null,"Full Name of Scientific Journal with Volume, Number and Pages :"]
[null,null,null,null,{"$f":"IF('Format No.2-1'!E19=\"\", \"\",'Format No.2-1'!E19)","v":""}]
[]
[]
[]
[]
[]
[null,"Pressed（Published online）:",null,null,{"$f":"IF('Format No.2-1'!E24=\"\", \"\",'Format No.2-1'!E24)","v":"☑"},null,"Accepted:",{"$f":"IF('Format No.2-1'!H24=\"\", \"\",'Format No.2-1'!H24)","v":""}]
[null,"Published date or accepted date for publication (expected date for publication if available):"]
[null,null,null,null,null,null,null,{"$f":"IF('Format No.2-1'!H26=\"\", \"\",'Format No.2-1'!H26)","v":""}]
[]
[]
[]
[]
[]
[]
[]
[]
[]
[]
[]
[]
[]
[]
[]
[{"$f":"\"I have confirmed co-authors of above joint-worked publication agree that (\"&'Data Entry Sheet'!B3&_xlfn._LONGTEXT(\") uses our present joint-worked publication as a part of his/her Major Papers that form the basis of his/her Doctoral Thesis. Also, I have confirmed that this publication was not used and will not be used as Major Papers that form basis of Doctoral Thesis\",\" of co-authors of above joint-worked publication in future. \")","v":{"$error":"#NAME?"}}]
[]
[]
[]
[]
["*; the first author of above described article\""]

{"sheet":"Format No.15","index":18,"n_rows":45,"n_cols":8,"rows_kept":45,"cut":false,"hidden":false,"merged":[[3,0,3,9],[11,3,15,8],[24,2,24,9],[5,7,5,9],[9,6,9,8],[7,0,7,6],[17,1,17,8],[22,2,23,9],[9,2,9,3],[8,2,8,3],[8,4,8,9],[44,0,44,9],[40,2,40,5],[41,5,41,8],[34,2,35,9],[26,2,27,8],[32,2,33,9],[39,2,39,8]]}
["（Format No.15）"]
[]
[]
["Notification Form of Internet Publication of Doctoral Dissertation"]
[]
[null,null,null,null,null,null,null,{"$f":"'Data Entry Sheet'!B2","v":"00:00:00"}]
[]
["To Dean of the United Graduate School of\nAgricultural Sciences, Tottori University"]
[null,null,"Name of Applicant:",null,{"$f":"'Data Entry Sheet'!B3","v":0}]
[null,null,"Signature:"]
["Title of Doctoral Dissertation:"]
[]
[]
[]
[]
[]
[]
[null,"I hereby confirm that, as established in Tottori University Degree Regulation No.10 and No.11, the publication of my doctoral thesis is in accordance with the following:"]
[]
[null,"1. Regarding the publication of the entire text of the doctoral dissertation"]
[null,"Please check the appropriate box"]
[]
[null,null,"I consent to the publication of the entire text of my doctoral dissertation within one year of the day I was granted a doctorate."]
[]
[null,null,"Due to unavoidable circumstances, I hereby apply for the publication of the summary of the doctoral dissertation, in lieu of the full text, for the duration of three years from the day I was granted a doctorate."]
[]
[null,null,"Please submit the Application for Publication of Doctoral Dissertation (Form No.12)"]
[]
[]
[null,"2. Regarding the publication of the summary of doctoral dissertation (Form No.3)"]
[null,"Please check the appropriate box"]
[]
[null,null,"I consent to the publication of the summary of my doctoral dissertation (Form No,3) within three months of the day I was granted a doctorate."]
[]
[null,null,"Due to unavoidable circumstances, I hereby apply for the publication of the summary of the doctoral dissertation omitting part thereof until the full text of the doctoral thesis is published."]
[]
[]
[]
[null,null,"(Confirmation Section)"]
[null,null,"I have duly confirmed the content of the above application."]
[null,null,"Name of Major (Recommending) Supervisor:",null,null,null,{"$f":"'Data Entry Sheet'!B9","v":0}]
[null,null,null,"Signature:"]
[]
[]
["* Please submit this form after obtaining confirmation and consent from your major supervisor (recommending teacher)."]